fUSD/lending_fUSD_20251014
["ID","MTS","AMOUNT","RATE_DAILY","PERIOD"]
[391250093,1760433041307,-151.0,0.00015,2]
[391250095,1760433041316,-151.0,0.00015,2]
[391250097,1760433041325,-151.0,0.00015,2]
[391250099,1760433041334,-151.0,0.00015,2]
[391250101,1760433041344,-169.79284739,0.00015,2]
[391250103,1760433041353,-326.56566859,0.00015046,2]
[391250106,1760433041363,-500.0,0.00015055,2]
[391250107,1760433041373,-500.0,0.00015055,2]
[391250110,1760433041382,-502.87703341,0.00015055,2]
[391250112,1760433041391,-200.0,0.00015055,2]
[391250114,1760433041400,-200.0,0.00015055,2]
[391250116,1760433041410,-290.45791938,0.00015055,2]
[391250117,1760433041419,-500.0,0.00015055,2]
[391250119,1760433041430,-150.0,0.00015055,2]
[391250122,1760433041440,-150.0,0.00015055,2]
[391250123,1760433041450,-153.62294082,0.00015055,2]
[391250125,1760433041459,-500.0,0.00015055,2]
[391250127,1760433041468,-150.0,0.00015055,2]
[391250129,1760433041478,-150.0,0.00015055,2]
[391250131,1760433041488,-1189.0,0.00015055,2]
[391250133,1760433041497,-387.67583219,0.0001511,2]
[391250135,1760433041506,-501.67756319,0.0001511,2]
[391250138,1760433041516,-150.0,0.0001511,2]
[391250140,1760433041526,-150.0,0.0001511,2]
[391250142,1760433041535,-150.0,0.0001511,2]
[391250144,1760433041545,-500.0,0.0001511,2]
[391250146,1760433041555,-200.0,0.0001511,2]
[391250148,1760433041563,-211.0,0.0001511,2]
[391250150,1760433041573,-1189.0,0.0001511,2]
[391250152,1760433041582,-151.0,0.00015113,2]
[391250154,1760433041593,-151.0,0.00015113,2]
[391250156,1760433041603,-151.0,0.00015113,2]
[391250158,1760433041613,-151.0,0.00015113,2]
[391250160,1760433041622,-151.0,0.00015113,2]
[391250162,1760433041632,-1831.98,0.00015124,2]
[391250164,1760433041641,-262.0,0.00015142,2]
[391250166,1760433041651,-1281.0,0.00015159,2]
[391250168,1760433041660,-200.0,0.00015164,2]
[391250170,1760433041670,-150.0,0.00015164,2]
[391250172,1760433041680,-500.0,0.00015164,2]
[391250173,1760433041692,-1189.0,0.00015164,2]
[391250174,1760433041701,-164.0,0.00015172,2]
[391250175,1760433041711,-399.0,0.0001519,2]
[391250176,1760433041721,-497.0,0.00015203,2]
[391250177,1760433041731,-150.0,0.00015219,2]
[391250178,1760433041740,-156.45575434,0.00015219,2]
[391250179,1760433041748,-1189.0,0.00015219,2]
[391250180,1760433041759,-1866.0,0.0001522,2]
[391250181,1760433041769,-330.0,0.00015233,2]
[391250182,1760433041778,-1065.0,0.0001525,2]
[391250184,1760433041787,-316.0,0.00015263,2]
[391250185,1760433041796,-297.68,0.00015265,2]
[391250187,1760433041805,-1603.64301,0.0001527,2]
[391250189,1760433041814,-500.0,0.00015274,2]
[391250191,1760433041823,-202.0373281,0.00015274,2]
[391250194,1760433041833,-1189.0,0.00015274,2]
[391250196,1760433041842,-170.04,0.00015275,2]
[391250197,1760433041851,-704.0,0.0001528,2]
[391250200,1760433041861,-441.0,0.00015293,2]
[391250202,1760433041870,-1220.0,0.00015311,2]
[391250204,1760433041879,-192.0,0.00015324,2]
[391250206,1760433041889,-1189.0,0.00015329,2]
[391250208,1760433041898,-151.0,0.00015332,2]
[391250210,1760433041906,-442.396731,0.00015335,2]
[391250212,1760433041915,-811.9332632,0.00015335,2]
[391250214,1760433041925,-70473.8885084,0.00015335,2]
[391250216,1760433041934,-1644.0,0.00015341,2]
[391250218,1760433041944,-281.0,0.00015354,2]
[391250219,1760433041954,-277.0,0.00015371,2]
[391250221,1760433041963,-1189.0,0.00015384,2]
[391250224,1760433041973,-253.0,0.00015384,2]
[391250226,1760433041984,-224.0,0.00015401,2]
[391250228,1760433041994,-395.0,0.00015414,2]
[391250230,1760433042005,-576.0,0.00015432,2]
[391250232,1760433042015,-1189.0,0.00015438,2]
[391250234,1760433042024,-489.0,0.00015444,2]
[391250236,1760433042034,-580.0,0.00015462,2]
[391250238,1760433042044,-314.0,0.00015475,2]
[391250240,1760433042054,-396.0,0.00015492,2]
[391250242,1760433042063,-1189.0,0.00015493,2]
[391250244,1760433042075,-176.0,0.00015505,2]
[391250246,1760433042085,-1060.92895725,0.00015521,2]
[391250248,1760433042098,-1315.0,0.00015522,2]
[391250250,1760433042108,-216.0,0.00015535,2]
[391250252,1760433042118,-297.7,0.00015539,2]
[391250254,1760433042127,-500.0,0.00015548,2]
[391250256,1760433042136,-1189.0,0.00015548,2]
[391250258,1760433042147,-255.0,0.00015553,2]
[391250260,1760433042157,-470.0,0.00015565,2]
[391250262,1760433042166,-853.0,0.00015583,2]
[391250264,1760433042176,-218.0,0.00015596,2]
[391250266,1760433042187,-1189.0,0.00015603,2]
[391250268,1760433042196,-898.0,0.00015613,2]
[391250270,1760433042205,-287.61899177,0.00015618,2]
[391250272,1760433042214,-450.0,0.00015626,2]
[391250274,1760433042224,-475.0,0.00015643,2]
[391250276,1760433042233,-484.0,0.00015656,2]
[391250278,1760433042243,-1189.0,0.00015658,2]
[391250280,1760433042253,-150.0,0.00015674,2]
[391250282,1760433042263,-200.0,0.00015674,2]
[391250284,1760433042272,-550.8932374,0.00015674,2]
[391250286,1760433042283,-300.0,0.00015674,2]
[391250288,1760433042292,-300.0,0.00015674,2]
[391250290,1760433042301,-302.57927306,0.00015674,2]
[391250292,1760433042311,-556.0,0.00015674,2]
[391250294,1760433042320,-219.0,0.00015686,2]
[391250297,1760433042329,-819.0,0.00015704,2]
[391250299,1760433042339,-171.55,0.00015706,2]
[391250301,1760433042348,-1189.0,0.00015712,2]
[391250303,1760433042358,-256.0,0.00015716,2]
[391250305,1760433042367,-1924.0,0.00015734,2]
[391250307,1760433042376,-178.0,0.00015747,2]
[391250309,1760433042385,-267.0,0.00015764,2]
[391250311,1760433042395,-1189.0,0.00015767,2]
[391250313,1760433042403,-1603.643,0.0001578,2]
[391250315,1760433042413,-1039.0,0.00015795,2]
[391250317,1760433042422,-500.0,0.00015822,2]
[391250319,1760433042431,-1189.0,0.00015822,2]
[391250321,1760433042440,-1537.0,0.00015825,2]
[391250323,1760433042449,-1668.0,0.00015855,2]
[391250325,1760433042459,-1189.0,0.00015877,2]
[391250327,1760433042469,-196.0,0.00015885,2]
[391250329,1760433042478,-170.04,0.00015906,2]
[391250331,1760433042487,-1912.0,0.00015916,2]
[391250333,1760433042497,-1189.0,0.00015932,2]
[391250335,1760433042506,-1449.0,0.00015946,2]
[391250337,1760433042515,-1121.0,0.00015976,2]
[391250339,1760433042524,-1189.0,0.00015986,2]
[391250341,1760433042533,-302.0,0.00016006,2]
[391250343,1760433042543,-1526.91,0.00016025,2]
[391250345,1760433042552,-155.0,0.00016037,2]
[391250347,1760433042561,-1189.0,0.00016041,2]
[391250349,1760433042571,-1350.0,0.00016067,2]
[391250351,1760433042580,-500.0,0.00016096,2]
[391250353,1760433042589,-1189.0,0.00016096,2]
[391250355,1760433042599,-9999.99,0.00016116,2]
[391250357,1760433042609,-1189.0,0.00016151,2]
[391250359,1760433042618,-153.71,0.00016204,2]
[391250361,1760433042627,-4528.0,0.00016205,2]
[391250363,1760433042637,-151.0,0.00016205,2]
[391250365,1760433042646,-151.0,0.00016205,2]
[391250367,1760433042656,-151.0,0.00016205,2]
[391250369,1760433042666,-151.0,0.00016205,2]
[391250371,1760433042675,-151.0,0.00016205,2]
[391250373,1760433042684,-161.64607498,0.00016205,2]
[391250375,1760433042698,-151.88386,0.00016205,2]
[391250377,1760433042707,-151.0,0.00016205,2]
[391250379,1760433042716,-151.0,0.00016205,2]
[391250381,1760433042726,-151.0,0.00016205,2]
[391250383,1760433042736,-1189.0,0.00016205,2]
[391250385,1760433042746,-151.0,0.0001623,2]
[391250387,1760433042755,-151.0,0.00016233,2]
[391250389,1760433042765,-152.944161,0.00016233,2]
[391250391,1760433042774,-151.399642,0.00016233,2]
[391250393,1760433042783,-151.0,0.00016233,2]
[391250395,1760433042791,-151.0,0.00016233,2]
[391250397,1760433042801,-151.0,0.00016233,2]
[391250399,1760433042810,-151.0,0.00016233,2]
[391250402,1760433042821,-152.45323,0.00016233,2]
[391250404,1760433042831,-151.0,0.00016233,2]
[391250406,1760433042841,-151.0,0.00016233,2]
[391250408,1760433042851,-151.0,0.00016233,2]
[391250410,1760433042860,-151.0,0.00016233,2]
[391250412,1760433042869,-151.0,0.00016233,2]
[391250414,1760433042879,-151.602933,0.00016233,2]
[391250416,1760433042888,-151.0,0.00016233,2]
[391250418,1760433042899,-151.0,0.00016233,2]
[391250419,1760433042908,-151.0,0.00016233,2]
[391250422,1760433042917,-182.322601,0.00016233,2]
[391250424,1760433042927,-152.105331,0.00016233,2]
[391250427,1760433042937,-151.0,0.00016233,2]
[391250430,1760433042946,-153.630826,0.00016233,2]
[391250433,1760433042955,-151.0,0.00016233,2]
[391250435,1760433042964,-151.0,0.00016233,2]
[391250437,1760433042973,-151.0,0.00016233,2]
[391250439,1760433042982,-174.154898,0.00016233,2]
[391250441,1760433042991,-151.0,0.00016233,2]
[391250443,1760433043001,-151.0,0.00016233,2]
[391250445,1760433043011,-151.0,0.00016233,2]
[391250447,1760433043020,-151.0,0.00016233,2]
[391250449,1760433043029,-151.0,0.00016233,2]
[391250451,1760433043038,-502.744389,0.00016233,2]
[391250453,1760433043047,-502.744389,0.00016233,2]
[391250455,1760433043057,-502.744389,0.00016233,2]
[391250457,1760433043067,-176.702314,0.00016233,2]
[391250459,1760433043076,-502.744389,0.00016233,2]
[391250461,1760433043085,-155.330919,0.00016233,2]
[391250463,1760433043094,-151.0,0.00016233,2]
[391250465,1760433043104,-151.0,0.00016233,2]
[391250467,1760433043113,-151.0,0.00016233,2]
[391250471,1760433043124,-151.00000051,0.00016233,2]
[391250473,1760433043135,-151.0,0.00016233,2]
[391250475,1760433043144,-151.0,0.00016233,2]
[391250477,1760433043153,-151.0,0.00016233,2]
[391250479,1760433043162,-151.0,0.00016233,2]
[391250481,1760433043171,-151.0,0.00016233,2]
[391250483,1760433043180,-10471.00565147,0.00016233,2]
[391250485,1760433043189,-6581.81634828,0.00016233,2]
[391250487,1760433043198,-260.05806081,0.00016233,2]
[391250489,1760433043208,-1210.48825878,0.0001626,2]
[391250491,1760433043217,-1603.64301,0.0001627,2]
[391250493,1760433043227,-334.5472959,0.0001636,2]
[391250495,1760433043238,-500.0,0.0001637,2]
[391250498,1760433043247,-171.55,0.00016492,2]
[391250500,1760433043255,-170.04,0.00016536,2]
[391250502,1760433043264,-500.0,0.00016644,2]
[391250504,1760433043273,-230.707032,0.00016644,2]
[391250506,1760433043282,-1603.643,0.0001677,2]
[391250508,1760433043291,-151.0,0.00016779,2]
[391250510,1760433043300,-152.171878,0.00016779,2]
[391250512,1760433043310,-151.0,0.00016779,2]
[391250514,1760433043319,-151.0,0.00016779,2]
[391250516,1760433043328,-151.0,0.00016779,2]
[391250518,1760433043337,-154.853299,0.00016779,2]
[391250520,1760433043348,-151.0,0.00016779,2]
[391250522,1760433043357,-152.44884,0.00016779,2]
[391250524,1760433043367,-151.0,0.00016779,2]
[391250526,1760433043376,-688.4562854,0.00016829,2]
[391250528,1760433043385,-500.0,0.00016918,2]
[391250530,1760433043395,-152.713735,0.00016922,2]
[391250532,1760433043403,-151.0,0.00016922,2]
[391250534,1760433043413,-154.022605,0.00016922,2]
[391250536,1760433043422,-152.171108,0.00016922,2]
[391250538,1760433043431,-152.875818,0.00016922,2]
[391250540,1760433043440,-200.70202,0.00016922,2]
[391250542,1760433043449,-159.399545,0.00016934,2]
[391250544,1760433043459,-236.6,0.00016934,2]
[391250546,1760433043468,-151.0,0.00016934,2]
[391250548,1760433043478,-151.0,0.00016934,2]
[391250550,1760433043487,-151.0,0.00016934,2]
[391250552,1760433043497,-151.0,0.00016934,2]
[391250554,1760433043506,-152.337691,0.00016934,2]
[391250556,1760433043516,-197.12776,0.00016934,2]
[391250594,1760433043863,-151.0,0.00016934,2]
[391250596,1760433043873,-191.504323,0.00016934,2]
[391250598,1760433043882,-151.0,0.00016934,2]
[391250600,1760433043892,-151.0,0.00016934,2]
[391250602,1760433043902,-151.0,0.00016934,2]
[391250604,1760433043910,-151.0,0.00016934,2]
[391250606,1760433043920,-162.981255,0.00016934,2]
[391250608,1760433043929,-151.0,0.00016934,2]
[391250610,1760433043938,-152.188218,0.00016934,2]
[391250612,1760433043947,-152.510934,0.00016934,2]
[391250614,1760433043956,-151.0,0.00016934,2]
[391250616,1760433043965,-151.0,0.00016934,2]
[391250619,1760433043975,-151.0,0.00016934,2]
[391250620,1760433043984,-189.433584,0.00016934,2]
[391250623,1760433043994,-151.0,0.00016934,2]
[391250625,1760433044003,-151.0,0.00016934,2]
[391250627,1760433044012,-166.363324,0.00016934,2]
[391250629,1760433044022,-152.707993,0.00016934,2]
[391250631,1760433044032,-502.744389,0.00016934,2]
[391250633,1760433044041,-502.744389,0.00016934,2]
[391250635,1760433044051,-502.744389,0.00016934,2]
[391250637,1760433044060,-502.744389,0.00016934,2]
[391250639,1760433044069,-151.0,0.00016934,2]
[391250641,1760433044079,-151.0,0.00016934,2]
[391250643,1760433044089,-284.98374,0.00016934,2]
[391250645,1760433044099,-151.0,0.00016934,2]
[391250647,1760433044108,-151.0,0.00016934,2]
[391250649,1760433044119,-151.0,0.00016934,2]
[391250651,1760433044129,-190.490704,0.00016934,2]
[391250653,1760433044138,-151.0,0.00016934,2]
[391250655,1760433044148,-151.0,0.00016934,2]
[391250657,1760433044158,-151.0,0.00016934,2]
[391250659,1760433044167,-152.515404,0.00016934,2]
[391250661,1760433044176,-151.0,0.00016934,2]
[391250663,1760433044186,-151.0,0.00016934,2]
[391250665,1760433044197,-151.0,0.00016934,2]
[391250667,1760433044206,-152.746893,0.00016934,2]
[391250669,1760433044215,-151.0,0.00016934,2]
[391250671,1760433044224,-151.976857,0.00016934,2]
[391250673,1760433044233,-151.0,0.00016934,2]
[391250675,1760433044243,-151.0,0.00016934,2]
[391250677,1760433044253,-307.048095,0.00016934,2]
[391250679,1760433044262,-22660.681386,0.00016934,2]
[391250682,1760433044272,-9645.7162967,0.00016934,2]
[391250684,1760433044282,-298.26089446,0.00016987,2]
[391250686,1760433044291,-170.04,0.00017166,2]
[391250688,1760433044305,-442.396731,0.00017171,2]
[391250690,1760433044315,-500.0,0.00017192,2]
[391250692,1760433044324,-811.9332632,0.0001726,2]
[391250694,1760433044334,-1603.64301,0.0001727,2]
[391250696,1760433044343,-171.55,0.00017277,2]
[391250698,1760433044354,-255.953151,0.00017281,2]
[391250700,1760433044363,-70473.8885084,0.00017283,2]
[391250702,1760433044372,-613.38,0.00017466,2]
[391250704,1760433044381,-10471.00565147,0.00017567,2]
[391250706,1760433044390,-6581.81634828,0.00017567,2]
[391250708,1760433044399,-260.05806081,0.00017567,2]
[391250710,1760433044408,-207.647707,0.00017567,2]
[391250711,1760433044417,-151.0,0.00017567,2]
[391250712,1760433044426,-307.048095,0.00017567,2]
[391250713,1760433044435,-246.66567,0.00017728,2]
[391250714,1760433044444,-346.92554585,0.00017729,2]
[391250715,1760433044454,-747.8093786,0.0001773,2]
[391250716,1760433044463,-200.0,0.0001773,2]
[391250717,1760433044472,-170.04,0.00017797,2]
[391250718,1760433044481,-1526.91,0.00017805,2]
[391250719,1760433044491,-7020.0,0.00017808,13]
[391250720,1760433044500,-10000.0,0.00017808,13]
[391250722,1760433044509,-10000.0,0.00017808,13]
[391250723,1760433044519,-151.0,0.00017898,2]
[391250725,1760433044528,-3000.0,0.00018,10]
[391250727,1760433044538,-171.55,0.00018062,2]
[391250729,1760433044548,-445.79125369,0.00018356,2]
[391250732,1760433044557,-688.4562854,0.00018659,2]
[391250733,1760433044566,-10000.0,0.00018707,13]
[391250736,1760433044577,-151.0,0.00018708,2]
[391250738,1760433044586,-151.0,0.00018708,2]
[391250740,1760433044596,-151.0,0.00018708,2]
[391250742,1760433044607,-151.0,0.00018708,2]
[391250743,1760433044616,-151.0,0.00018708,2]
[391250745,1760433044625,-252.803838,0.00018708,2]
[391250748,1760433044635,-151.0,0.00018708,2]
[391250750,1760433044644,-151.0,0.00018708,2]
[391250752,1760433044654,-163.105981,0.00018708,2]
[391250754,1760433044664,-170.36065,0.00018708,2]
[391250756,1760433044673,-151.0,0.00018708,2]
[391250758,1760433044682,-151.0,0.00018708,2]
[391250760,1760433044697,-151.0,0.00018708,2]
[391250762,1760433044706,-162.159204,0.00018708,2]
[391250764,1760433044716,-502.744389,0.00018708,2]
[391250766,1760433044725,-502.744389,0.00018708,2]
[391250768,1760433044736,-502.744389,0.00018708,2]
[391250770,1760433044746,-502.744389,0.00018708,2]
[391250772,1760433044757,-240.420384,0.00018708,2]
[391250774,1760433044769,-151.0,0.00018708,2]
[391250776,1760433044779,-151.0,0.00018708,2]
[391250778,1760433044788,-151.0,0.00018708,2]
[391250780,1760433044798,-171.55,0.00018848,2]
[391250782,1760433044807,-22660.681386,0.00018869,2]
[391250784,1760433044816,-9645.7162967,0.00018869,2]
[391250786,1760433044826,-153.598702,0.00018869,2]
[391250788,1760433044835,-151.0,0.00018869,2]
[391250790,1760433044844,-191.196083,0.00018869,2]
[391250792,1760433044855,-151.0,0.00018869,2]
[391250794,1760433044864,-151.0,0.00018869,2]
[391250796,1760433044873,-151.0,0.00018869,2]
[391250798,1760433044883,-151.0,0.00018869,2]
[391250800,1760433044892,-187.435211,0.00018869,2]
[391250802,1760433044901,-897.45124452,0.00018899,2]
[391250805,1760433044911,-181.57466091,0.000189,2]
[391250807,1760433044920,-10471.00565147,0.000189,2]
[391250809,1760433044929,-6581.81634828,0.000189,2]
[391250811,1760433044939,-260.05806081,0.000189,2]
[391250813,1760433044949,-500.0,0.00018973,2]
[391250815,1760433044958,-7976.12218719,0.00018999,13]
[391250817,1760433044967,-153.44437881,0.00018999,2]
[391250819,1760433044976,-151.82953881,0.00018999,2]
[391250821,1760433044985,-151.0,0.00018999,2]
[391250823,1760433044994,-151.0,0.00018999,2]
[391250825,1760433045003,-151.0,0.00018999,2]
[391250827,1760433045012,-151.0,0.00018999,2]
[391250829,1760433045021,-151.0,0.00018999,2]
[391250831,1760433045030,-151.0,0.00018999,2]
[391250833,1760433045039,-151.0,0.00018999,2]
[391250835,1760433045048,-307.048095,0.00018999,2]
[391250837,1760433045058,-432498.63792189,0.00019,2]
[391250839,1760433045067,-193.27106821,0.00019,2]
[391250841,1760433045076,-205.54258,0.00019,2]
[391250843,1760433045085,-151.0,0.00019,2]
[391250845,1760433045094,-151.0,0.00019,2]
[391250847,1760433045104,-151.0,0.00019,2]
[391250849,1760433045113,-151.0,0.00019,2]
[391250851,1760433045122,-151.0,0.00019,2]
[391250853,1760433045131,-151.0,0.00019,2]
[391250855,1760433045140,-502.744389,0.00019,2]
[391250857,1760433045149,-502.744389,0.00019,2]
[391250859,1760433045158,-502.744389,0.00019,2]
[391250861,1760433045167,-502.744389,0.00019,2]
[391250863,1760433045176,-163.24595134,0.00019,2]
[391250865,1760433045185,-151.0,0.00019,2]
[391250867,1760433045194,-151.0,0.00019,2]
[391250869,1760433045203,-155.126732,0.00019,2]
[391250871,1760433045212,-151.0,0.00019,2]
[391250873,1760433045222,-151.0,0.00019,2]
[391250875,1760433045231,-151.0,0.00019,2]
[391250877,1760433045241,-151.0,0.00019,2]
[391250879,1760433045250,-307.048095,0.00019,2]
[391250881,1760433045260,-442.396731,0.00019006,2]
[391250883,1760433045270,-359.76179104,0.00019098,2]
[391250885,1760433045279,-500.0,0.00019178,2]
[391250887,1760433045288,-170.39889296,0.00019178,2]
[391250889,1760433045297,-200.0,0.00019178,2]
[391250891,1760433045306,-811.9332632,0.00019184,2]
[391250893,1760433045316,-70473.8885084,0.00019232,2]
[391250895,1760433045325,-500.0,0.00019233,2]
[391250897,1760433045334,-500.0,0.00019288,2]
[391250899,1760433045343,-1119.99557216,0.00019324,2]
[391250901,1760433045352,-500.0,0.00019342,2]
[391250903,1760433045362,-500.0,0.00019397,2]
[391250905,1760433045371,-500.0,0.00019452,2]
[391250907,1760433045380,-500.0,0.00019507,2]
[391250909,1760433045389,-500.0,0.00019562,2]
[391250911,1760433045398,-1526.91,0.00019586,2]
[391250913,1760433045408,-500.0,0.00019616,2]
[391250915,1760433045417,-332.65987042,0.00019626,2]
[391250917,1760433045426,-171.55,0.00019633,2]
[391250919,1760433045435,-500.0,0.00019671,2]
[391250921,1760433045445,-500.0,0.00019726,2]
[391250923,1760433045454,-190.092545,0.00019726,7]
[391250925,1760433045463,-151.0,0.00019726,7]
[391250927,1760433045472,-151.0,0.00019726,7]
[391250929,1760433045481,-151.0,0.00019726,7]
[391250931,1760433045491,-151.0,0.00019726,7]
[391250933,1760433045501,-151.0,0.00019726,7]
[391250935,1760433045510,-502.744389,0.00019726,7]
[391250937,1760433045520,-502.744389,0.00019726,7]
[391250939,1760433045531,-502.744389,0.00019726,7]
[391250941,1760433045540,-502.744388,0.00019726,7]
[391250943,1760433045549,-151.0,0.00019726,7]
[391250945,1760433045559,-151.0,0.00019726,7]
[391250947,1760433045568,-262.672158,0.00019726,7]
[391250949,1760433045577,-151.0,0.00019726,7]
[391250951,1760433045586,-236.854079,0.00019726,7]
[391250953,1760433045595,-307.048095,0.00019726,7]
[391250955,1760433045606,-103980.98,0.00019726,2]
[391250957,1760433045616,-400.0,0.00019726,2]
[391250959,1760433045625,-265.04337206,0.00019781,2]
[391250961,1760433045635,-323.9,0.00019839,2]
[391250963,1760433045645,-296.87,0.00020187,2]
[391250965,1760433045654,-897.45124452,0.00020233,2]
[391250967,1760433045663,-10471.00565147,0.00020233,2]
[391250969,1760433045672,-6581.81634828,0.00020233,2]
[391250971,1760433045681,-260.05806081,0.00020233,2]
[391250973,1760433045693,-200.0,0.00020274,2]
[391250975,1760433045703,-1090.0,0.00020341,2]
[391250977,1760433045713,-171.55,0.00020418,2]
[391250979,1760433045722,-249.20816721,0.00020467,2]
[391250981,1760433045732,-925.84216896,0.00020469,2]
[391250983,1760433045741,-688.4562854,0.00020488,2]
[391250985,1760433045750,-22660.681386,0.00020803,2]
[391250987,1760433045759,-9645.7162967,0.00020803,2]
[391250989,1760433045771,-442.396731,0.00020842,2]
[391250991,1760433045780,-811.9332632,0.00021109,2]
[391250993,1760433045789,-70473.8885084,0.0002118,2]
[391250995,1760433045798,-171.55,0.00021204,2]
[391250997,1760433045807,-16796.16,0.00021357,4]
[391250999,1760433045816,-1526.91,0.00021366,2]
[391251001,1760433045826,-1090.0,0.00021412,2]
[391251003,1760433045835,-475.40571922,0.00021424,2]
[391251005,1760433045846,-897.45124452,0.00021566,2]
[391251007,1760433045856,-10471.00565147,0.00021567,2]
[391251009,1760433045865,-6581.81634828,0.00021567,2]
[391251011,1760433045874,-260.05806081,0.00021567,2]
[391251013,1760433045883,-5000.0,0.00021918,2]
[391251015,1760433045892,-151.0,0.00021918,7]
[391251017,1760433045902,-151.0,0.00021918,7]
[391251019,1760433045911,-207.348309,0.00021918,7]
[391251021,1760433045920,-25000.0,0.00021997,4]
[391251023,1760433045929,-153.6172,0.00021997,7]
[391251026,1760433045938,-175.0,0.00022,2]
[391251028,1760433045948,-175.0,0.00022192,7]
[391251029,1760433045957,-1090.0,0.00022482,2]
[391251032,1760433045968,-299.0,0.0002256,2]
[391251034,1760433045977,-4014.0,0.00022632,2]
[391251037,1760433045986,-556.0,0.00022632,2]
[391251040,1760433045995,-6442.0,0.00022632,2]
[391251042,1760433046004,-3081.0,0.00022632,2]
[391251044,1760433046014,-897.45124452,0.000229,2]
[391251046,1760433046024,-10471.00565147,0.000229,2]
[391251048,1760433046033,-6581.81634828,0.000229,2]
[391251050,1760433046042,-260.05806081,0.000229,2]
[391251053,1760433046052,-150.0,0.00022943,2]
[391251055,1760433046061,-175.0,0.00023014,7]
[391251057,1760433046070,-348.28,0.0002308,2]
[391251059,1760433046080,-635.0,0.00023199,2]
[391251061,1760433046088,-348.29,0.00023217,2]
[391251063,1760433046098,-5327.0,0.00023228,2]
[391251065,1760433046106,-1879.0,0.00023228,2]
[391251067,1760433046115,-405.0,0.0002337,2]
[391251069,1760433046125,-405.0,0.00023381,2]
[391251071,1760433046134,-1725.0,0.000234,2]
[391251073,1760433046143,-1252.48,0.0002345,2]
[391251075,1760433046153,-694.95,0.0002345,2]
[391251086,1760433046243,-1008.94,0.0002345,2]
[391251088,1760433046253,-241.50277341,0.00023569,2]
[391251090,1760433046262,-329.0,0.000236,5]
[391251092,1760433046271,-1090.0,0.00023606,2]
[391251094,1760433046280,-405.0,0.00023711,2]
[391251096,1760433046289,-174.29,0.00023836,2]
[391251098,1760433046298,-871.0,0.00023858,2]
[391251100,1760433046307,-200.0,0.00023862,2]
[391251102,1760433046316,-150.122,0.00023862,2]
[391251104,1760433046324,-3406.0,0.00023862,2]
[391251106,1760433046333,-892.0,0.00023862,2]
[391251108,1760433046342,-1267.0,0.00023862,2]
[391251110,1760433046351,-2097.06,0.00023862,2]
[391251111,1760433046360,-571.0,0.00023862,2]
[391251114,1760433046369,-1546.0,0.00023862,2]
[391251116,1760433046378,-604.0,0.00023862,2]
[391251118,1760433046387,-1309.0,0.00023862,2]
[391251120,1760433046395,-816.0,0.00023862,2]
[391251122,1760433046404,-168.0,0.00024075,2]
[391251124,1760433046413,-168.0,0.00024111,2]
[391251126,1760433046422,-168.0,0.0002415,2]
[391251128,1760433046431,-181.0,0.00024164,7]
[391251130,1760433046439,-897.45124452,0.00024233,2]
[391251132,1760433046448,-10471.00565147,0.00024233,2]